bitfinex/quotes_SOLUSD_20251013
["timestamp","ask_amount","ask_price","bid_price","bid_amount"]
[1760352598497,1e-08,196.14,196.13,19.57519715]
[1760352598698,1e-08,196.14,196.13,20.22519715]
[1760352599599,1e-08,196.14,196.13,25.3238562]
[1760352600202,0.2,196.17,196.13,25.3238562]
[1760352600203,0.2,196.17,196.16,27.3364892]
[1760352600397,1e-08,196.17,196.16,30.45159438]
[1760352600583,1e-08,196.17,196.16,31.10159438]
[1760352601099,1e-08,196.17,196.16,28.49627712]
[1760352601297,1e-08,196.17,196.16,27.84627712]
[1760352601481,1e-08,196.17,196.16,31.90332178]
[1760352601675,1e-08,196.17,196.16,32.9441564]
[1760352602286,1e-08,196.17,196.16,37.00120106]
[1760352602475,1e-08,196.17,196.16,37.65120106]
[1760352603583,0.2,196.21,196.17,10.87647521]
[1760352603907,0.2,196.21,196.2,31.39353386]
[1760352604399,0.2,196.21,196.2,112.44353386]
[1760352604700,0.2,196.21,196.2,246.54353386]
[1760352604883,0.2,196.21,196.2,242.4864892]
[1760352605086,0.2,196.21,196.2,245.89353386]
[1760352605284,0.2,196.21,196.2,16.46001399]
[1760352605498,0.2,196.21,196.2,16.96969798]
[1760352605709,4.87704466,196.21,196.2,16.96969798]
[1760352605906,0.82,196.21,196.2,16.46001399]
[1760352606289,4.87704466,196.21,196.2,16.46001399]
[1760352606806,8.93408932,196.21,196.15,16.36001399]
[1760352606982,4.05704466,196.16,196.15,16.36001399]
[1760352607382,10.19691496,196.16,196.13,16.36001399]
[1760352607582,9.67691496,196.14,196.13,16.36001399]
[1760352607804,10.19691496,196.14,196.08,16.36001399]
[1760352608006,9.67691496,196.09,196.05,16.36001399]
[1760352608304,20.8,196.11,196.05,16.36001399]
[1760352608305,0.52,196.08,196.05,16.36001399]
[1760352608488,0.52,196.12,196.06,16.87006193]
[1760352608681,9.67691496,196.07,196.06,16.36001399]
[1760352609081,10.19691496,196.07,196.04,16.36001399]
[1760352609289,9.67691496,196.05,196.04,16.36001399]
[1760352609586,10.19691496,196.05,196.04,16.36001399]
[1760352609784,20.8,196.06,196.04,21.46092762]
[1760352610001,20.8,196.06,196.05,16.36001399]
[1760352610513,9.67691496,196.06,196.05,16.36001399]
[1760352611093,10.19691496,196.06,196.05,16.36001399]
[1760352611291,10.19691496,196.06,196.01,16.36001399]
[1760352611489,0.50771731,196.07,196.04,16.36001399]
[1760352611490,21.30771731,196.07,196.04,16.36001399]
[1760352611690,0.52,196.06,196.04,16.36001399]
[1760352611896,9.67691496,196.05,196.04,16.36001399]
[1760352612099,10.19691496,196.05,196.04,16.36001399]
[1760352613214,9.67691496,196.05,196.04,16.36001399]
[1760352613786,1.02771731,196.11,196.06,16.36001399]
[1760352613986,9.67691496,196.07,196.06,16.36001399]
[1760352615418,10.19691496,196.07,196.06,16.36001399]
[1760352615609,9.67691496,196.07,196.06,16.36001399]
[1760352615811,20.8,196.1,196.09,16.36001399]
[1760352616013,31.10689983,196.1,196.09,16.36001399]
[1760352616511,21.42998487,196.1,196.09,16.36001399]
[1760352616712,0.10998487,196.1,196.09,21.4597131]
[1760352617020,9.78689983,196.1,196.09,16.36001399]
[1760352618019,9.78689983,196.1,196.09,21.4597131]
[1760352618201,0.10998487,196.1,196.09,22.1797131]
[1760352618816,0.10998487,196.1,196.09,22.68968301]
[1760352619004,0.10998487,196.1,196.09,32.36659797]
[1760352619919,0.10998487,196.1,196.09,22.68968301]
[1760352620119,9.78689983,196.1,196.09,16.8699839]
[1760352620320,10.81461714,196.1,196.04,16.36001399]
[1760352620500,0.52,196.09,196.06,16.36001399]
[1760352620701,1.02771731,196.08,196.06,16.36001399]
[1760352621004,0.52,196.08,196.06,16.36001399]
[1760352621637,9.67691496,196.07,196.06,16.36001399]
[1760352622526,0.50771731,196.09,196.07,16.36001399]
[1760352622726,9.78689983,196.1,196.09,16.36001399]
[1760352623023,0.10998487,196.1,196.09,16.36001399]
[1760352624305,0.10998487,196.1,196.09,21.4597131]
[1760352624611,0.10998487,196.1,196.09,22.1797131]
[1760352625120,0.10998487,196.1,196.09,21.4597131]
[1760352625321,0.10998487,196.1,196.09,22.1797131]
[1760352626126,0.10998487,196.1,196.09,42.73310327]
[1760352627222,0.10998487,196.1,196.09,21.4597131]
[1760352627522,9.78689983,196.1,196.09,16.36001399]
[1760352628101,9.78689983,196.1,196.09,17.08001399]
[1760352628308,0.10998487,196.1,196.09,16.36001399]
[1760352628915,9.78689983,196.1,196.09,16.36001399]
[1760352631006,10.30689983,196.1,196.09,16.36001399]
[1760352631606,9.78689983,196.1,196.09,16.36001399]
[1760352632019,10.30689983,196.1,196.08,16.36001399]
[1760352632219,20.8,196.06,196.04,16.36001399]
[1760352632421,9.67691496,196.05,196.04,16.36001399]
[1760352632724,20.8,196.02,195.98,16.36001399]
[1760352633026,20.8,196.02,195.96,0.72]
[1760352633027,9.67691496,195.99,195.96,16.36001399]
[1760352633330,9.67691496,195.97,195.96,16.36001399]
[1760352633520,9.67691496,195.97,195.94,16.36001399]
[1760352633827,0.50771731,195.98,195.97,16.36001399]
[1760352634030,5.10230113,195.99,195.95,16.36001399]
[1760352634223,20.8,195.97,195.95,16.36001399]
[1760352634523,0.50771731,195.99,195.98,16.36001399]
[1760352634831,21.30771731,196.03,196.02,16.36001399]
[1760352635024,31.50463227,196.03,195.99,16.36001399]
[1760352635326,9.67691496,196.0,195.99,16.36001399]
[1760352636006,9.77589686,196.0,195.99,16.36001399]
[1760352637321,9.77589686,196.0,195.99,17.08001399]
[1760352637823,9.77589686,196.0,195.99,16.36001399]
[1760352638409,9.77589686,196.0,195.98,16.36001399]
[1760352638717,9.67691496,195.99,195.98,16.36001399]
[1760352639811,10.19691496,195.99,195.96,16.36001399]
[1760352640011,9.67691496,195.97,195.95,16.36001399]
[1760352640327,21.40669921,196.0,195.96,16.36001399]
[1760352640508,20.8,195.97,195.94,16.36001399]
[1760352641311,0.52,195.96,195.94,16.36001399]
[1760352641537,9.67691496,195.95,195.91,16.36001399]
[1760352641720,9.67691496,195.92,195.91,16.36001399]
[1760352641923,9.67691496,195.93,195.91,16.36001399]
[1760352642117,9.67691496,195.92,195.91,16.36001399]
[1760352642635,9.67691496,195.92,195.91,17.08001399]
[1760352643016,0.50771731,195.96,195.91,17.08001399]
[1760352643211,9.67691496,195.92,195.91,17.08001399]
[1760352643719,9.67691496,195.92,195.91,16.36001399]
[1760352644033,20.8,195.89,195.88,17.08001399]
[1760352644236,20.8,195.89,195.88,16.36001399]
[1760352644237,30.47691496,195.89,195.88,16.36001399]
[1760352645028,30.47691496,195.89,195.86,16.56001399]
[1760352645215,20.8,195.89,195.88,16.36001399]
[1760352645758,20.8,195.9,195.88,16.36001399]
[1760352646256,9.67691496,195.89,195.88,16.36001399]
[1760352647130,20.8,195.91,195.9,16.36001399]
[1760352647436,21.30771731,195.93,195.92,16.36001399]
[1760352647636,20.8,195.93,195.92,16.36001399]
[1760352648533,30.47691496,195.93,195.89,0.72]
[1760352648744,30.47691496,195.91,195.89,0.72]
[1760352648919,20.8,195.91,195.9,16.36001399]
[1760352649416,20.8,195.91,195.87,5.82540262]
[1760352649417,20.8,195.91,195.88,21.46512142]
[1760352649619,20.8,195.91,195.9,16.36001399]
[1760352650041,0.52,195.96,195.92,16.36001399]
[1760352650247,9.67691496,195.93,195.92,16.36001399]
[1760352650629,10.19691496,195.93,195.88,16.36001399]
[1760352650835,30.47691496,195.9,195.89,16.36001399]
[1760352652230,30.47691496,195.9,195.88,16.36001399]
[1760352652435,30.47691496,195.89,195.88,16.36001399]
[1760352654828,21.30771731,195.91,195.9,16.36001399]
[1760352655046,30.98463227,195.91,195.9,16.36001399]
[1760352655938,31.08462253,195.91,195.9,16.36001399]
[1760352656260,10.28462253,195.91,195.9,16.36001399]
[1760352656637,15.38900719,195.91,195.87,16.36001399]
[1760352656837,5.71209223,195.91,195.89,16.36001399]
[1760352657351,5.71209223,195.91,195.88,16.36001399]
[1760352657552,20.8,195.88,195.86,17.28001399]
[1760352658026,30.47691496,195.88,195.86,17.28001399]
[1760352658524,20.8,195.88,195.87,16.36001399]
[1760352658730,30.47691496,195.88,195.87,16.36001399]
[1760352659230,5.71209223,195.91,195.87,17.08001399]
[1760352659231,9.67691496,195.89,195.87,17.08001399]
[1760352659432,9.67691496,195.89,195.88,0.72]
[1760352660365,9.67691496,195.89,195.87,16.36001399]
[1760352660654,9.67691496,195.89,195.88,0.72]
[1760352661146,9.67691496,195.89,195.87,16.36001399]
[1760352661356,30.47691496,195.88,195.87,16.36001399]
[1760352662161,30.47691496,195.88,195.87,16.26001399]
[1760352662339,5.10542706,195.87,195.86,0.2]
[1760352662541,15.29005933,195.87,195.86,0.2]
[1760352663257,0.50771731,195.87,195.86,0.2]
[1760352663459,7.02400067,195.87,195.86,0.2]
[1760352665451,12.12942773,195.87,195.86,0.2]
[1760352666345,7.02400067,195.87,195.86,0.2]
[1760352667078,21.30771731,195.87,195.86,0.92]
[1760352667274,0.60770757,195.91,195.89,15.84001399]
[1760352667446,6.51628336,195.9,195.89,15.84001399]
[1760352668147,27.31628336,195.9,195.89,15.84001399]
[1760352669342,32.42092858,195.9,195.86,0.2]
[1760352669548,6.51628336,195.87,195.86,0.2]
[1760352670660,11.62171042,195.87,195.86,0.2]
[1760352670864,22.49818563,195.87,195.86,0.2]
[1760352671061,15.98190227,195.87,195.86,0.2]
[1760352671235,22.49818563,195.87,195.86,0.2]
[1760352671563,20.8,195.84,195.8,15.84001399]
[1760352671860,20.8,195.84,195.8,16.56001399]
[1760352671861,0.50771731,195.83,195.8,16.56001399]
[1760352672066,2.60773604,195.81,195.8,15.84001399]
[1760352672938,2.60773604,195.81,195.79,15.84001399]
[1760352673136,20.8,195.8,195.79,16.56001399]
[1760352673369,27.31916494,195.8,195.79,16.56001399]
[1760352674343,27.31916494,195.8,195.79,15.84001399]
[1760352674666,20.8,195.8,195.79,15.84001399]
[1760352675271,6.51916494,195.8,195.79,15.84001399]
[1760352675840,20.8,195.78,195.77,0.2]
[1760352676174,21.30771731,195.78,195.77,0.2]
[1760352676372,27.82688225,195.78,195.77,0.2]
[1760352677367,32.93465628,195.78,195.77,0.2]
[1760352681458,43.81113149,195.78,195.77,0.2]
[1760352681661,43.81113149,195.78,195.72,0.2]
[1760352681861,20.8,195.69,195.68,15.84001399]
[1760352682054,27.31916494,195.69,195.68,16.51001399]
[1760352682947,0.50771731,195.74,195.69,15.84001399]
[1760352683256,6.51916494,195.71,195.7,15.84001399]
[1760352683450,6.51916494,195.71,195.7,16.51001399]
[1760352683676,27.31916494,195.72,195.71,15.84001399]
[1760352683856,0.50771731,195.74,195.71,16.51001399]
[1760352684178,27.31916494,195.73,195.72,16.51001399]
[1760352684689,27.31916494,195.73,195.72,0.67]
[1760352684968,27.31916494,195.73,195.72,16.51001399]
[1760352685562,21.30771731,195.74,195.72,16.51001399]
[1760352685750,21.30771731,195.74,195.73,16.51001399]
[1760352685947,27.82688225,195.74,195.73,16.51001399]
[1760352686771,21.30771731,195.74,195.73,16.51001399]
[1760352686972,0.50771731,195.76,195.73,16.51001399]
[1760352687274,27.31916494,195.75,195.74,16.51001399]
[1760352688078,0.50771731,195.77,195.74,15.84001399]
[1760352688259,6.51916494,195.75,195.74,15.84001399]
[1760352688453,6.51916494,195.76,195.74,15.84001399]
[1760352688782,20.8,195.74,195.73,15.84001399]
[1760352689275,5.72214904,195.8,195.77,15.84001399]
[1760352689479,20.8,195.78,195.77,15.84001399]
[1760352690074,25.90769285,195.79,195.77,15.84001399]
[1760352690272,0.50771731,195.78,195.77,15.84001399]
[1760352690479,7.02688225,195.78,195.77,15.84001399]
[1760352690780,7.02688225,195.78,195.75,16.51001399]
[1760352690977,6.51916494,195.76,195.75,15.84001399]
[1760352691577,6.6262676,195.8,195.79,15.84001399]
[1760352691748,6.6262676,195.8,195.79,16.51001399]
[1760352691749,27.4262676,195.8,195.79,16.51001399]
[1760352691953,32.53351989,195.8,195.75,15.84001399]
[1760352692187,20.8,195.75,195.7,15.84001399]
[1760352692368,6.51916494,195.71,195.7,15.84001399]
[1760352692771,6.51916494,195.72,195.71,15.84001399]
[1760352692972,6.51916494,195.72,195.71,16.51001399]
[1760352693175,0.50771731,195.74,195.71,16.51001399]
[1760352693380,0.50771731,195.74,195.73,15.84001399]
[1760352693586,0.50771731,195.74,195.73,16.51001399]
[1760352694589,23.40949978,195.75,195.74,15.84001399]
[1760352694774,23.40949978,195.75,195.74,16.51001399]
[1760352695280,2.60949978,195.75,195.74,16.51001399]
[1760352695673,2.60949978,195.75,195.74,15.84001399]
[1760352696097,2.71419164,195.75,195.74,15.84001399]
[1760352696486,20.8,195.73,195.72,16.51001399]
[1760352696668,20.8,195.73,195.72,15.84001399]
[1760352696669,23.40949978,195.73,195.72,15.84001399]
[1760352696866,23.40949978,195.73,195.72,16.51001399]
[1760352698867,2.60949978,195.73,195.72,16.51001399]
[1760352699080,23.40949978,195.74,195.73,15.84001399]
[1760352699303,23.40949978,195.74,195.73,16.51001399]
[1760352699472,20.8,195.74,195.73,16.51001399]
[1760352699671,3.22190895,195.75,195.74,15.84001399]
[1760352699978,3.22190895,195.75,195.74,16.51001399]
[1760352700172,3.22190895,195.75,195.74,0.67]
[1760352700371,3.22190895,195.75,195.74,16.51001399]
[1760352700771,8.33046578,195.75,195.74,15.84001399]
[1760352701390,20.8,195.74,195.7,0.67]
[1760352701588,2.60949978,195.71,195.7,15.84001399]
[1760352702093,2.60949978,195.71,195.69,15.84001399]
[1760352702298,2.60949978,195.7,195.68,15.84001399]
[1760352702471,3.11721709,195.69,195.67,15.84001399]
[1760352702679,2.60949978,195.68,195.66,15.94001399]
[1760352702873,0.50771731,195.71,195.69,15.84001399]
[1760352703187,20.8,195.69,195.68,15.84001399]
[1760352703390,20.8,195.68,195.67,15.84001399]
[1760352703583,23.40949978,195.68,195.67,15.84001399]
[1760352703894,23.40949978,195.68,195.67,16.51001399]
[1760352704973,2.60949978,195.68,195.67,16.51001399]
[1760352705685,0.50771731,195.69,195.67,16.51001399]
[1760352705868,23.40949978,195.68,195.67,16.51001399]
[1760352706295,0.50771731,195.72,195.69,15.84001399]
[1760352706492,2.60949978,195.71,195.69,15.84001399]
[1760352706798,2.60949978,195.73,195.7,16.51001399]
[1760352706977,3.11721709,195.73,195.71,16.53001399]
[1760352707174,3.11721709,195.73,195.72,16.53001399]
[1760352707483,2.60949978,195.74,195.73,15.84001399]
[1760352707682,2.60949978,195.74,195.73,16.53001399]
[1760352707888,2.60949978,195.74,195.73,15.84001399]
[1760352709901,20.8,195.72,195.71,16.53001399]
[1760352712102,23.40949978,195.72,195.71,16.53001399]
[1760352712582,2.60949978,195.73,195.71,16.53001399]
[1760352712782,2.60949978,195.73,195.71,15.84001399]
[1760352712994,2.60949978,195.73,195.72,0.69]
[1760352713192,2.60949978,195.73,195.72,16.53001399]
[1760352713394,2.60949978,195.74,195.73,15.84001399]
[1760352713593,0.10469186,195.75,195.74,16.53001399]
[1760352713907,0.10392415,195.76,195.75,26.7164892]
[1760352714219,0.09683343,195.78,195.77,15.84001399]
[1760352714504,0.09830737,195.79,195.78,29.32598898]
[1760352714691,0.09830737,195.79,195.78,30.01598898]
[1760352715384,0.09830737,195.79,195.78,35.12376301]
[1760352715988,0.20072743,195.79,195.78,35.12376301]
[1760352717592,0.10242006,195.79,195.78,35.12376301]
[1760352718794,0.10242006,195.79,195.78,32.51426323]
[1760352719388,0.10242006,195.79,195.78,31.82426323]
[1760352719612,0.10242006,195.79,195.78,26.7164892]
[1760352719991,0.10242006,195.79,195.78,32.51426323]
[1760352720187,0.10242006,195.79,195.78,35.12376301]
[1760352720519,0.10242006,195.79,195.78,32.51426323]
[1760352721691,0.10242006,195.79,195.78,35.12376301]
[1760352721889,0.10242006,195.79,195.78,35.63454041]
[1760352723001,0.10242006,195.79,195.78,35.12376301]
[1760352725504,0.10242006,195.79,195.78,36.58640382]
[1760352726396,0.10242006,195.79,195.78,35.89640382]
[1760352726597,0.10242006,195.79,195.78,36.58640382]
[1760352728806,0.10242006,195.79,195.78,116.98640382]
[1760352729513,0.10389322,195.81,195.8,80.2008047]
[1760352729693,1e-08,195.81,195.8,249.6723003]
[1760352729986,1e-08,195.81,195.8,249.85157508]
[1760352730188,1e-08,195.81,195.8,245.77943449]
[1760352730931,1e-08,195.81,195.8,250.88668678]
[1760352733019,1e-08,195.81,195.8,246.81454619]
[1760352733213,1e-08,195.81,195.8,246.12454619]
[1760352733432,1e-08,195.81,195.8,250.88668678]
[1760352733732,1e-08,195.81,195.8,250.19668678]
[1760352734252,0.65000001,195.81,195.8,26.7164892]
[1760352734415,4.7221406,195.81,195.78,15.84001399]
[1760352734607,4.7221406,195.81,195.75,91.07727991]
[1760352734608,20.80000001,195.81,195.8,15.84001399]
[1760352735213,20.8,195.79,195.78,15.84001399]
[1760352735413,21.45,195.79,195.78,15.84001399]
[1760352735638,21.45,195.79,195.76,15.84001399]
[1760352735927,4.17676032,195.77,195.76,15.84001399]
[1760352736112,25.62676032,195.77,195.76,15.84001399]
[1760352736818,20.90461973,195.77,195.76,20.94830986]
[1760352737220,21.59461973,195.77,195.76,20.94830986]
[1760352737422,21.59461973,195.77,195.76,15.84001399]
[1760352737627,25.66676032,195.77,195.76,15.84001399]
[1760352740331,30.77479525,195.77,195.73,15.84001399]
[1760352740536,4.07214059,195.74,195.72,15.84001399]
[1760352740735,20.8,195.75,195.71,15.84001399]
[1760352740736,4.07214059,195.73,195.71,15.84001399]
[1760352740949,4.07214059,195.73,195.72,15.84001399]
[1760352741160,5.2698579,195.73,195.72,15.84001399]
[1760352741313,5.2698579,195.73,195.69,15.84001399]
[1760352741314,5.10933987,195.72,195.69,15.84001399]
[1760352741518,5.61688227,195.73,195.71,15.84001399]
[1760352741948,20.8,195.71,195.7,15.84001399]
[1760352742239,20.8,195.7,195.68,15.84001399]
[1760352742436,21.49,195.7,195.69,15.84001399]
[1760352742661,25.56214059,195.7,195.69,15.84001399]
[1760352744031,1.19771731,195.73,195.69,20.95007518]
[1760352744267,1.19771731,195.73,195.72,15.84001399]
[1760352744544,0.69,195.73,195.72,15.84001399]
[1760352745241,6.30679614,195.73,195.72,15.84001399]
[1760352745430,10.37893673,195.73,195.71,15.84001399]
[1760352745641,4.76214059,195.72,195.71,15.84001399]
[1760352746960,4.07214059,195.72,195.71,15.84001399]
[1760352747139,4.76214059,195.72,195.71,15.84001399]
[1760352747647,9.87148046,195.72,195.69,15.84001399]
[1760352747831,4.07214059,195.7,195.69,15.84001399]
[1760352749453,4.5798579,195.71,195.7,15.84001399]
[1760352749856,4.07214059,195.71,195.7,15.84001399]
[1760352750555,4.07214059,195.71,195.7,96.04081869]
[1760352750853,9.87174153,195.71,195.7,96.04081869]
[1760352751363,5.79960094,195.71,195.7,96.04081869]
[1760352751735,5.79960094,195.71,195.69,15.84001399]
[1760352752052,1.19771731,195.7,195.69,15.84001399]
[1760352752243,6.30757934,195.7,195.69,15.84001399]
[1760352752434,1.19771731,195.7,195.68,15.84001399]
[1760352752636,0.50771731,195.71,195.7,15.84001399]
[1760352752850,25.90911068,195.73,195.71,15.84001399]
[1760352753030,5.2698579,195.72,195.69,15.84001399]
[1760352753248,4.76214059,195.71,195.7,15.84001399]
[1760352753750,4.76214059,195.71,195.68,15.84001399]
[1760352753953,0.50771731,195.7,195.69,15.84001399]
[1760352754561,1.19771731,195.7,195.69,15.84001399]
[1760352754859,6.30757934,195.7,195.69,15.84001399]
[1760352755235,5.61757934,195.7,195.69,15.84001399]
[1760352755540,5.61732568,195.71,195.7,15.84001399]
[1760352755744,6.30732568,195.71,195.7,15.84001399]
[1760352755943,6.41530854,195.71,195.7,15.84001399]
[1760352756457,10.48744913,195.71,195.68,15.84001399]
[1760352756636,4.76214059,195.7,195.68,15.84001399]
[1760352756836,0.50771731,195.69,195.68,15.84001399]
[1760352757751,1.19771731,195.7,195.68,15.84001399]
[1760352758258,4.76214059,195.69,195.66,15.94001399]
[1760352758456,4.5798579,195.68,195.66,15.94001399]
[1760352758641,10.38038182,195.68,195.66,15.94001399]
[1760352759070,10.38038182,195.68,195.67,15.84001399]
[1760352760550,10.38038182,195.68,195.66,15.94001399]
[1760352760749,4.76214059,195.67,195.66,0.1]
[1760352761855,4.76214059,195.67,195.66,15.94001399]
[1760352762535,21.30771731,195.69,195.67,15.84001399]
[1760352762737,21.30771731,195.69,195.67,16.50001399]
[1760352762935,20.8,195.68,195.67,15.84001399]
[1760352763139,21.49,195.68,195.67,15.84001399]
[1760352763441,20.8,195.68,195.67,15.84001399]
[1760352763744,24.87214059,195.68,195.67,15.84001399]
[1760352764671,9.18252489,195.68,195.67,15.84001399]
[1760352765167,9.88252489,195.68,195.66,0.1]
[1760352765458,5.2798579,195.67,195.66,0.1]
[1760352766574,31.19050337,195.67,195.66,0.1]
[1760352767066,10.39050337,195.67,195.66,0.1]
[1760352767659,31.19050337,195.67,195.66,0.1]
[1760352767865,10.39050337,195.67,195.66,0.1]
[1760352768073,31.19050337,195.67,195.66,1e-08]
[1760352768272,10.39050337,195.67,195.65,1e-08]
[1760352768490,4.07214059,195.66,195.65,1e-08]
[1760352768658,9.18304726,195.66,195.65,1e-08]
[1760352768851,9.87304726,195.66,195.65,1e-08]
[1760352769360,20.8,195.63,195.61,0.2]
[1760352769672,25.3798579,195.62,195.61,0.2]
[1760352769875,26.0698579,195.62,195.61,0.2]
[1760352770551,31.18180964,195.62,195.61,0.2]
[1760352770946,31.18180964,195.62,195.56,0.2]
[1760352770947,35.25395023,195.62,195.56,0.2]
[1760352771188,35.25395023,195.62,195.53,15.84001399]
[1760352771189,31.67647521,195.52,195.51,1e-08]
[1760352771354,29.45199849,195.52,195.44,16.53001399]
[1760352771673,4.07214059,195.49,195.44,15.84001399]
[1760352771868,4.5798579,195.49,195.42,15.84001399]
[1760352772055,20.8,195.45,195.42,15.84001399]
[1760352772257,20.8,195.45,195.43,15.84001399]
[1760352772258,0.50771731,195.44,195.43,15.84001399]
[1760352772462,4.5798579,195.44,195.43,15.84001399]
[1760352772867,25.3798579,195.44,195.43,16.53001399]
[1760352773069,21.30771731,195.44,195.43,16.53001399]
[1760352773368,20.8,195.45,195.44,15.84001399]
[1760352773565,0.50771731,195.47,195.46,15.84001399]
[1760352774355,20.8,195.45,195.44,15.84001399]
[1760352774563,20.8,195.45,195.44,16.53001399]
[1760352774968,20.8,195.46,195.45,15.84001399]
[1760352775161,20.8,195.46,195.45,16.53001399]
[1760352775771,0.50771731,195.47,195.46,15.84001399]
[1760352775972,0.60010812,195.47,195.46,16.53001399]
[1760352777174,0.60010812,195.47,195.46,15.84001399]
[1760352777376,0.60010812,195.47,195.44,15.84001399]
[1760352777579,0.60010812,195.47,195.46,15.84001399]
[1760352777753,20.8,195.46,195.45,16.53001399]
[1760352777959,0.09239081,195.47,195.46,15.84001399]
[1760352778277,0.09239081,195.47,195.46,16.53001399]
[1760352779688,0.09239081,195.47,195.46,42.26771525]
[1760352782059,0.09239081,195.47,195.46,32.52262549]
[1760352782257,0.09239081,195.47,195.46,42.26771525]
[1760352783391,0.09239081,195.47,195.46,15.84001399]
[1760352783588,0.09239081,195.47,195.46,16.53001399]
[1760352784185,0.09239081,195.47,195.46,31.39124004]
[1760352785062,0.09239081,195.47,195.46,21.64615028]
[1760352786774,0.60010812,195.47,195.46,15.84001399]
[1760352787090,0.09239081,195.47,195.46,16.53001399]
[1760352787288,0.09239081,195.47,195.46,28.18523656]
[1760352790600,0.09239081,195.47,195.46,26.7164892]
[1760352790900,0.60010812,195.47,195.44,15.84001399]
[1760352791191,5.7160224,195.47,195.43,15.84001399]
[1760352791405,20.8,195.45,195.44,15.84001399]
[1760352791731,28.02908628,195.45,195.41,15.84001399]
[1760352792009,6.53908628,195.42,195.41,15.84001399]
[1760352792206,7.22908628,195.42,195.41,15.84001399]
[1760352792789,0.69,195.42,195.41,15.84001399]
[1760352793003,6.31490081,195.42,195.41,15.84001399]
[1760352793579,6.31490081,195.42,195.39,15.84001399]
[1760352793580,5.62490081,195.42,195.39,15.84001399]
[1760352793794,5.62490081,195.42,195.41,15.84001399]
[1760352794183,0.50771731,195.42,195.41,15.84001399]
[1760352794384,0.50771731,195.43,195.41,16.53001399]
[1760352794889,0.50771731,195.43,195.41,15.84001399]
[1760352795098,26.42480217,195.43,195.41,15.84001399]
[1760352796077,0.10120965,195.42,195.41,15.84001399]
[1760352796380,0.10120965,195.42,195.4,15.84001399]
[1760352796594,0.10120965,195.42,195.41,15.84001399]
[1760352797679,0.10120965,195.42,195.41,23.09910027]
[1760352797984,0.10120965,195.42,195.41,28.21654564]
[1760352798181,0.10120965,195.42,195.41,21.67745936]
[1760352798375,0.10120965,195.42,195.41,28.21654564]
[1760352798582,0.10120965,195.42,195.41,39.60476538]
[1760352803491,0.10120965,195.42,195.41,120.00476538]
[1760352803803,0.10120965,195.42,195.41,119.49302085]
[1760352804604,0.10120965,195.42,195.41,39.09302085]
[1760352805091,0.10120965,195.42,195.41,119.49302085]
[1760352805603,0.10120965,195.42,195.41,115.56925835]
[1760352806104,0.10120965,195.42,195.41,32.55393457]
[1760352806303,0.10120965,195.42,195.41,35.16925835]
[1760352807207,0.10120965,195.42,195.41,35.68100288]
[1760352807812,0.10120965,195.42,195.41,33.0656791]
[1760352808320,0.10120965,195.42,195.41,35.68100288]
[1760352809501,0.10120965,195.42,195.41,35.16925835]
[1760352811407,0.10120965,195.42,195.41,15.84001399]
[1760352811610,0.80120965,195.42,195.41,15.84001399]
[1760352812811,0.10120965,195.42,195.41,15.84001399]
[1760352814194,0.80120965,195.42,195.41,15.84001399]
[1760352814491,0.10120965,195.42,195.41,15.84001399]
[1760352814692,29.33371693,195.42,195.36,15.84001399]
[1760352814907,1.20771731,195.41,195.39,15.84001399]
[1760352815112,0.7,195.4,195.39,15.84001399]
[1760352815512,5.81770726,195.4,195.39,15.84001399]
[1760352815915,20.8,195.37,195.31,15.84001399]
[1760352816095,2.61532378,195.34,195.32,15.84001399]
[1760352816300,0.50771731,195.33,195.32,15.84001399]
[1760352816501,1.20771731,195.33,195.31,15.84001399]
[1760352816837,1.20771731,195.33,195.32,15.84001399]
[1760352817119,0.50771731,195.33,195.31,15.84001399]
[1760352817323,1.20771731,195.33,195.3,15.84001399]
[1760352817498,5.11980339,195.32,195.3,15.84001399]
[1760352817818,1.20771731,195.31,195.28,15.84001399]
[1760352818191,2.61532378,195.3,195.28,15.84001399]
[1760352818401,1.20771731,195.29,195.27,15.84001399]
[1760352818604,0.7,195.28,195.27,15.84001399]
[1760352818806,0.50771731,195.29,195.27,15.84001399]
[1760352818807,3.12304109,195.29,195.27,15.84001399]
[1760352819007,1.20771731,195.29,195.27,15.84001399]
[1760352819222,0.50771731,195.29,195.28,15.84001399]
[1760352819422,0.50771731,195.29,195.27,15.84001399]
[1760352819598,0.50771731,195.3,195.28,15.84001399]
[1760352820002,21.30771731,195.34,195.31,15.84001399]
[1760352820199,21.30771731,195.34,195.32,15.84001399]
[1760352820922,0.50771731,195.34,195.33,15.84001399]
[1760352821119,0.50771731,195.35,195.34,15.84001399]
[1760352821630,5.62673445,195.35,195.34,15.84001399]
[1760352822727,0.09850605,195.4,195.34,15.84001399]
[1760352822728,0.50771731,195.36,195.35,15.84001399]